[Event "Titled Tuesday Blitz April 12 Late 2022"]
[White "Miszler, Levente"]
[Black "Shuvalova, Polina"]
[WhiteFideId "763276"]
[BlackFideId "24171760"]
[WhiteElo "1966"]
[BlackElo "2355"]
[Result "1-0"]
[Round "01"]
[TimeControl "180+1"]
[Date "2022.04.13"]
[WhiteClock "0:00:06"]
[BlackClock "0:00:03"]

1. Nf3 {[%clk 0:02:59]}  Nf6 {[%clk 0:02:59]} 2. c4 {[%clk 0:02:59]}  e6 {[%clk 0:02:59]} 3. g3 {[%clk 0:02:53]}  d5 {[%clk 0:02:59]} 4. Bg2 {[%clk 0:02:52]}  Be7 {[%clk 0:02:56]} 5. O-O {[%clk 0:02:51]}  O-O {[%clk 0:02:56]} 6. d4 {[%clk 0:02:52]}  c6 {[%clk 0:02:52]} 7. b3 {[%clk 0:02:47]}  Nbd7 {[%clk 0:02:52]} 8. Bb2 {[%clk 0:02:47]}  b6 {[%clk 0:02:51]} 9. Nbd2 {[%clk 0:02:46]}  Bb7 {[%clk 0:02:50]} 10. Rc1 {[%clk 0:02:44]}  Rc8 {[%clk 0:02:49]} 11. Qc2 {[%clk 0:02:42]}  a5 {[%clk 0:02:43]} 12. e4 {[%clk 0:02:41]}  c5 {[%clk 0:02:40]} 13. exd5 {[%clk 0:02:39]}  exd5 {[%clk 0:02:40]} 14. dxc5 {[%clk 0:02:38]}  Nxc5 {[%clk 0:02:36]} 15. cxd5 {[%clk 0:02:20]}  Qxd5 {[%clk 0:02:29]} 16. Nc4 {[%clk 0:02:16]}  Qh5 {[%clk 0:02:13]} 17. Nfe5 {[%clk 0:02:07]}  Bxg2 {[%clk 0:02:12]} 18. Kxg2 {[%clk 0:02:08]}  b5 {[%clk 0:02:11]} 19. Nxa5 {[%clk 0:01:55]}  h6 {[%clk 0:01:43]} 20. Nac6 {[%clk 0:01:52]}  Bd6 {[%clk 0:01:43]} 21. Rfd1 {[%clk 0:01:42]}  Bxe5 {[%clk 0:01:42]} 22. Nxe5 {[%clk 0:01:42]}  Ne6 {[%clk 0:01:29]} 23. Qxc8 {[%clk 0:01:30]}  Rxc8 {[%clk 0:01:28]} 24. Rxc8+ {[%clk 0:01:31]}  Kh7 {[%clk 0:01:29]} 25. Rd2 {[%clk 0:01:03]}  Ne4 {[%clk 0:01:29]} 26. Rdc2 {[%clk 0:00:58]}  Qf5 {[%clk 0:01:23]} 27. a4 {[%clk 0:00:48]}  bxa4 {[%clk 0:01:21]} 28. bxa4 {[%clk 0:00:49]}  N4g5 {[%clk 0:01:19]} 29. h4 {[%clk 0:00:42]}  Qe4+ {[%clk 0:01:18]} 30. Kg1 {[%clk 0:00:40]}  Nh3+ {[%clk 0:00:39]} 31. Kh2 {[%clk 0:00:40]}  Nhf4 {[%clk 0:00:36]} 32. gxf4 {[%clk 0:00:27]}  Qxf4+ {[%clk 0:00:35]} 33. Kg2 {[%clk 0:00:22]}  Qxh4 {[%clk 0:00:35]} 34. R2c4 {[%clk 0:00:09]}  Nf4+ {[%clk 0:00:28]} 35. Kf3 {[%clk 0:00:08]}  g5 {[%clk 0:00:20]} 36. R4c7 {[%clk 0:00:07]}  Qh1+ {[%clk 0:00:16]} 37. Ke3 {[%clk 0:00:05]}  Qe1+ {[%clk 0:00:14]} 38. Kd4 {[%clk 0:00:05]}  Qd2+ {[%clk 0:00:12]} 39. Ke4 {[%clk 0:00:05]}  Qe2+ {[%clk 0:00:09]} 40. Kf5 {[%clk 0:00:06]}  h5 {[%clk 0:00:03]} 41. Rxf7+ {[%clk 0:00:06]}  Kh6 {[%clk 0:00:03]} 42. Rh8# {[%clk 0:00:06]} 1-0


[Site "https://www.chess.com"]

[Event "Titled Tuesday Blitz April 12 Late 2022"]
[White "Molenda, Marcin"]
[Black "Svane, Frederik"]
[WhiteFideId "1173065"]
[BlackFideId "12923044"]
[WhiteElo "2067"]
[BlackElo "2459"]
[Result "1-0"]
[Round "01"]
[TimeControl "180+1"]
[Date "2022.04.12"]
[WhiteClock "0:01:15"]
[BlackClock "0:00:24"]

1. d4 {[%clk 0:03:00]}  Nf6 {[%clk 0:03:00]} 2. c4 {[%clk 0:02:59]}  e6 {[%clk 0:03:00]} 3. g3 {[%clk 0:03:00]}  d5 {[%clk 0:03:01]} 4. Nf3 {[%clk 0:02:59]}  Bb4+ {[%clk 0:03:01]} 5. Bd2 {[%clk 0:02:59]}  Be7 {[%clk 0:03:02]} 6. Bg2 {[%clk 0:02:59]}  O-O {[%clk 0:03:02]} 7. O-O {[%clk 0:02:54]}  c6 {[%clk 0:03:03]} 8. Bf4 {[%clk 0:02:49]}  dxc4 {[%clk 0:03:03]} 9. Ne5 {[%clk 0:02:47]}  Nd5 {[%clk 0:03:03]} 10. Nxc4 {[%clk 0:02:45]}  Nxf4 {[%clk 0:03:03]} 11. gxf4 {[%clk 0:02:46]}  Nd7 {[%clk 0:03:03]} 12. Nc3 {[%clk 0:02:46]}  Nb6 {[%clk 0:03:04]} 13. Ne5 {[%clk 0:02:45]}  Nd5 {[%clk 0:03:04]} 14. e3 {[%clk 0:02:46]}  f6 {[%clk 0:03:04]} 15. Nd3 {[%clk 0:02:37]}  Bd7 {[%clk 0:03:04]} 16. Ne4 {[%clk 0:02:31]}  b6 {[%clk 0:03:03]} 17. Rc1 {[%clk 0:02:31]}  Rc8 {[%clk 0:03:02]} 18. a3 {[%clk 0:02:31]}  a5 {[%clk 0:03:01]} 19. Kh1 {[%clk 0:02:26]}  Be8 {[%clk 0:03:02]} 20. Rg1 {[%clk 0:02:25]}  Qd7 {[%clk 0:02:57]} 21. Qf3 {[%clk 0:02:14]}  Bg6 {[%clk 0:02:52]} 22. Bh3 {[%clk 0:02:13]}  c5 {[%clk 0:02:52]} 23. dxc5 {[%clk 0:02:07]}  Bxe4 {[%clk 0:02:27]} 24. Qxe4 {[%clk 0:02:04]}  f5 {[%clk 0:02:28]} 25. Qd4 {[%clk 0:01:53]}  Bf6 {[%clk 0:02:19]} 26. Ne5 {[%clk 0:01:53]}  Bxe5 {[%clk 0:01:54]} 27. Qxe5 {[%clk 0:01:52]}  bxc5 {[%clk 0:01:50]} 28. Rxg7+ {[%clk 0:01:45]}  Qxg7 {[%clk 0:01:47]} 29. Rg1 {[%clk 0:01:45]}  Qxg1+ {[%clk 0:01:33]} 30. Kxg1 {[%clk 0:01:46]}  Rc6 {[%clk 0:01:34]} 31. Bf1 {[%clk 0:01:44]}  c4 {[%clk 0:01:29]} 32. Bxc4 {[%clk 0:01:44]}  Rd8 {[%clk 0:01:26]} 33. b3 {[%clk 0:01:42]}  Kf7 {[%clk 0:01:24]} 34. a4 {[%clk 0:01:40]}  Nf6 {[%clk 0:01:21]} 35. Qxa5 {[%clk 0:01:37]}  Rd1+ {[%clk 0:01:21]} 36. Kg2 {[%clk 0:01:37]}  Rcd6 {[%clk 0:01:20]} 37. Qxf5 {[%clk 0:01:33]}  Ke7 {[%clk 0:01:18]} 38. Qg5 {[%clk 0:01:32]}  Kf7 {[%clk 0:01:13]} 39. f5 {[%clk 0:01:31]}  Ne4 {[%clk 0:00:36]} 40. fxe6+ {[%clk 0:01:24]}  Kf8 {[%clk 0:00:27]} 41. Qf5+ {[%clk 0:01:22]}  Kg7 {[%clk 0:00:24]} 42. Qxe4 {[%clk 0:01:21]}  Rd8 {[%clk 0:00:24]} 43. Qe5+ {[%clk 0:01:21]}  Kg6 {[%clk 0:00:23]} 44. e7 {[%clk 0:01:19]}  Re8 {[%clk 0:00:23]} 45. Qe6+ {[%clk 0:01:17]}  Kg5 {[%clk 0:00:23]} 46. f4+ {[%clk 0:01:16]}  Kh5 {[%clk 0:00:23]} 47. Be2+ {[%clk 0:01:15]}  Kh4 {[%clk 0:00:24]} 48. Qg4# {[%clk 0:01:15]} 1-0


[Site "https://www.chess.com"]

[Event "Titled Tuesday Blitz April 12 Late 2022"]
[White "Moradiabadi, Elshan"]
[Black "O`Gorman, Tom"]
[WhiteFideId "12501255"]
[BlackFideId "2508249"]
[WhiteElo "2550"]
[BlackElo "2247"]
[Result "0-1"]
[Round "01"]
[TimeControl "180+1"]
[Date "2022.04.12"]
[WhiteClock "0:00:51"]
[BlackClock "0:00:57"]

1. d4 {[%clk 0:02:58]}  Nf6 {[%clk 0:02:59]} 2. Nf3 {[%clk 0:02:57]}  g6 {[%clk 0:02:57]} 3. Bg5 {[%clk 0:02:57]}  Bg7 {[%clk 0:02:58]} 4. Nbd2 {[%clk 0:02:57]}  O-O {[%clk 0:02:57]} 5. c3 {[%clk 0:02:58]}  d6 {[%clk 0:02:58]} 6. e4 {[%clk 0:02:57]}  Nc6 {[%clk 0:02:58]} 7. Be2 {[%clk 0:02:54]}  e5 {[%clk 0:02:57]} 8. dxe5 {[%clk 0:02:54]}  dxe5 {[%clk 0:02:56]} 9. O-O {[%clk 0:02:54]}  h6 {[%clk 0:02:56]} 10. Bh4 {[%clk 0:02:54]}  Qe8 {[%clk 0:02:55]} 11. Qc2 {[%clk 0:02:51]}  Nh5 {[%clk 0:02:53]} 12. Rfe1 {[%clk 0:02:51]}  Nf4 {[%clk 0:02:49]} 13. Bf1 {[%clk 0:02:52]}  Be6 {[%clk 0:02:48]} 14. b4 {[%clk 0:02:50]}  g5 {[%clk 0:02:43]} 15. Bg3 {[%clk 0:02:50]}  Rd8 {[%clk 0:02:43]} 16. Nc4 {[%clk 0:02:51]}  f6 {[%clk 0:02:40]} 17. Ne3 {[%clk 0:02:50]}  Rf7 {[%clk 0:02:32]} 18. Bc4 {[%clk 0:02:46]}  Bxc4 {[%clk 0:02:29]} 19. Nxc4 {[%clk 0:02:47]}  Bf8 {[%clk 0:02:29]} 20. Ne3 {[%clk 0:02:44]}  Kh7 {[%clk 0:02:25]} 21. Bxf4 {[%clk 0:02:43]}  exf4 {[%clk 0:02:24]} 22. Nf5 {[%clk 0:02:21]}  Ne5 {[%clk 0:02:22]} 23. Nxe5 {[%clk 0:02:20]}  Qxe5 {[%clk 0:02:23]} 24. Rad1 {[%clk 0:02:18]}  Rfd7 {[%clk 0:02:22]} 25. Rd4 {[%clk 0:02:10]}  c5 {[%clk 0:02:17]} 26. Rxd7+ {[%clk 0:02:08]}  Rxd7 {[%clk 0:02:16]} 27. a3 {[%clk 0:02:08]}  cxb4 {[%clk 0:02:08]} 28. cxb4 {[%clk 0:02:07]}  a5 {[%clk 0:02:07]} 29. g3 {[%clk 0:01:59]}  axb4 {[%clk 0:02:05]} 30. axb4 {[%clk 0:01:59]}  Bxb4 {[%clk 0:02:03]} 31. Rb1 {[%clk 0:01:52]}  Bc5 {[%clk 0:01:59]} 32. Qe2 {[%clk 0:01:45]}  b6 {[%clk 0:01:57]} 33. Qh5 {[%clk 0:01:37]}  Bf8 {[%clk 0:01:57]} 34. Qf3 {[%clk 0:01:26]}  Bc5 {[%clk 0:01:53]} 35. Kg2 {[%clk 0:01:22]}  Kg6 {[%clk 0:01:52]} 36. h4 {[%clk 0:01:20]}  Rd2 {[%clk 0:01:42]} 37. Rf1 {[%clk 0:01:20]}  h5 {[%clk 0:01:37]} 38. gxf4 {[%clk 0:01:13]}  Qxf4 {[%clk 0:01:34]} 39. Qxf4 {[%clk 0:01:14]}  gxf4 {[%clk 0:01:35]} 40. Kf3 {[%clk 0:01:14]}  b5 {[%clk 0:01:32]} 41. Rg1+ {[%clk 0:01:08]}  Kf7 {[%clk 0:01:28]} 42. Rg7+ {[%clk 0:01:08]}  Ke6 {[%clk 0:01:28]} 43. Kxf4 {[%clk 0:01:08]}  Rxf2+ {[%clk 0:01:28]} 44. Kg3 {[%clk 0:01:09]}  Re2 {[%clk 0:01:22]} 45. Kf3 {[%clk 0:01:09]}  Rf2+ {[%clk 0:01:22]} 46. Kg3 {[%clk 0:01:09]}  Ra2 {[%clk 0:01:23]} 47. Rb7 {[%clk 0:01:07]}  b4 {[%clk 0:01:22]} 48. Rb5 {[%clk 0:01:03]}  Rc2 {[%clk 0:01:20]} 49. Kf4 {[%clk 0:00:59]}  Rc3 {[%clk 0:01:19]} 50. Ng7+ {[%clk 0:00:57]}  Kd7 {[%clk 0:01:16]} 51. Nxh5 {[%clk 0:00:56]}  Kc6 {[%clk 0:01:16]} 52. Ra5 {[%clk 0:00:55]}  b3 {[%clk 0:01:14]} 53. Ra1 {[%clk 0:00:53]}  b2 {[%clk 0:01:07]} 54. Rb1 {[%clk 0:00:54]}  Ba3 {[%clk 0:01:08]} 55. Nxf6 {[%clk 0:00:54]}  Rc1 {[%clk 0:01:07]} 56. Rxb2 {[%clk 0:00:54]}  Bxb2 {[%clk 0:01:08]} 57. Ng4 {[%clk 0:00:53]}  Kd6 {[%clk 0:01:07]} 58. Kf5 {[%clk 0:00:51]}  Rf1+ {[%clk 0:01:07]} 59. Kg6 {[%clk 0:00:51]}  Ke6 {[%clk 0:01:06]} 60. h5 {[%clk 0:00:51]}  Rg1 {[%clk 0:01:04]} 61. Kg5 {[%clk 0:00:52]}  Bc1+ {[%clk 0:01:01]} 62. Kh4 {[%clk 0:00:51]}  Rh1+ {[%clk 0:00:57]} 0-1


[Site "https://www.chess.com"]

[Event "Titled Tuesday Blitz April 12 Late 2022"]
[White "Nazaretyan, Tigran"]
[Black "Coelho, Ramyres Santana"]
[WhiteFideId "24162345"]
[BlackFideId "2120690"]
[WhiteElo "2225"]
[BlackElo "1888"]
[Result "1-0"]
[Round "01"]
[TimeControl "180+1"]
[Date "2022.04.13"]
[WhiteClock "0:00:29"]
[BlackClock "0:00:04"]

1. d4 {[%clk 0:03:00]}  Nf6 {[%clk 0:02:55]} 2. c4 {[%clk 0:02:59]}  g6 {[%clk 0:02:55]} 3. Nc3 {[%clk 0:02:58]}  d5 {[%clk 0:02:55]} 4. Nf3 {[%clk 0:02:57]}  Bg7 {[%clk 0:02:54]} 5. Bg5 {[%clk 0:02:57]}  Ne4 {[%clk 0:02:48]} 6. Bh4 {[%clk 0:02:56]}  Nxc3 {[%clk 0:02:48]} 7. bxc3 {[%clk 0:02:57]}  O-O {[%clk 0:02:48]} 8. cxd5 {[%clk 0:02:56]}  Qxd5 {[%clk 0:02:47]} 9. Bxe7 {[%clk 0:02:56]}  Re8 {[%clk 0:02:47]} 10. Ba3 {[%clk 0:02:55]}  Bg4 {[%clk 0:02:35]} 11. e3 {[%clk 0:02:53]}  b6 {[%clk 0:02:13]} 12. Be2 {[%clk 0:02:48]}  c5 {[%clk 0:02:12]} 13. O-O {[%clk 0:02:43]}  cxd4 {[%clk 0:02:09]} 14. cxd4 {[%clk 0:02:40]}  Nc6 {[%clk 0:02:02]} 15. h3 {[%clk 0:02:37]}  Bd7 {[%clk 0:01:57]} 16. Qb3 {[%clk 0:02:06]}  Qf5 {[%clk 0:01:32]} 17. Rac1 {[%clk 0:01:55]}  Na5 {[%clk 0:01:30]} 18. Qb1 {[%clk 0:01:50]}  Qf6 {[%clk 0:01:28]} 19. Ne5 {[%clk 0:01:46]}  Bf5 {[%clk 0:01:25]} 20. Bd3 {[%clk 0:01:41]}  Be6 {[%clk 0:01:23]} 21. Bb4 {[%clk 0:01:36]}  Nb7 {[%clk 0:01:22]} 22. Rc7 {[%clk 0:01:35]}  Nd8 {[%clk 0:01:21]} 23. Rfc1 {[%clk 0:01:31]}  a5 {[%clk 0:01:16]} 24. Ba3 {[%clk 0:01:28]}  Qg5 {[%clk 0:01:09]} 25. Nf3 {[%clk 0:01:23]}  Qh5 {[%clk 0:01:04]} 26. Be2 {[%clk 0:01:15]}  Bf5 {[%clk 0:01:01]} 27. Qxb6 {[%clk 0:01:13]}  Ne6 {[%clk 0:00:54]} 28. Rxf7 {[%clk 0:01:09]}  Kxf7 {[%clk 0:00:28]} 29. Ne5+ {[%clk 0:01:07]}  Bxe5 {[%clk 0:00:27]} 30. Bxh5 {[%clk 0:01:07]}  gxh5 {[%clk 0:00:22]} 31. dxe5 {[%clk 0:01:06]}  Rab8 {[%clk 0:00:16]} 32. Qxa5 {[%clk 0:00:57]}  Rg8 {[%clk 0:00:13]} 33. Qa7+ {[%clk 0:00:55]}  Kg6 {[%clk 0:00:12]} 34. Qe7 {[%clk 0:00:49]}  Kh6 {[%clk 0:00:11]} 35. Qf6+ {[%clk 0:00:48]}  Rg6 {[%clk 0:00:10]} 36. Qxf5 {[%clk 0:00:48]}  Rbg8 {[%clk 0:00:11]} 37. g3 {[%clk 0:00:47]}  h4 {[%clk 0:00:10]} 38. g4 {[%clk 0:00:46]}  Ng5 {[%clk 0:00:11]} 39. Kg2 {[%clk 0:00:43]}  R8g7 {[%clk 0:00:10]} 40. Bf8 {[%clk 0:00:43]}  Nxh3 {[%clk 0:00:06]} 41. Kxh3 {[%clk 0:00:40]}  Rxg4 {[%clk 0:00:07]} 42. Bxg7+ {[%clk 0:00:38]}  Rxg7 {[%clk 0:00:06]} 43. Rc6+ {[%clk 0:00:37]}  Rg6 {[%clk 0:00:05]} 44. Rxg6+ {[%clk 0:00:35]}  hxg6 {[%clk 0:00:06]} 45. Qf7 {[%clk 0:00:32]}  Kh5 {[%clk 0:00:05]} 46. f4 {[%clk 0:00:30]}  Kh6 {[%clk 0:00:05]} 47. Kg4 {[%clk 0:00:29]}  h3 {[%clk 0:00:05]} 48. Qg8 {[%clk 0:00:29]}  h2 {[%clk 0:00:04]} 49. Qh8# {[%clk 0:00:29]} 1-0


[Site "https://www.chess.com"]

[Event "Titled Tuesday Blitz April 12 Late 2022"]
[White "Obrien, Matthew"]
[Black "Kosteniuk, Alexandra"]
[WhiteFideId "2059150"]
[BlackFideId "4128125"]
[WhiteElo "2311"]
[BlackElo "2469"]
[Result "1-0"]
[Round "01"]
[TimeControl "180+1"]
[Date "2022.04.13"]
[WhiteClock "0:00:47"]
[BlackClock "0:00:56"]

1. e4 {[%clk 0:02:59]}  c6 {[%clk 0:02:58]} 2. Nf3 {[%clk 0:02:57]}  d5 {[%clk 0:02:57]} 3. d3 {[%clk 0:02:57]}  Qc7 {[%clk 0:02:57]} 4. Nc3 {[%clk 0:02:54]}  Nf6 {[%clk 0:02:54]} 5. e5 {[%clk 0:02:51]}  Nfd7 {[%clk 0:02:52]} 6. d4 {[%clk 0:02:47]}  e6 {[%clk 0:02:51]} 7. Bd3 {[%clk 0:02:42]}  h6 {[%clk 0:02:44]} 8. O-O {[%clk 0:02:42]}  b5 {[%clk 0:02:39]} 9. Re1 {[%clk 0:02:39]}  Be7 {[%clk 0:02:37]} 10. a4 {[%clk 0:02:37]}  b4 {[%clk 0:02:37]} 11. Ne2 {[%clk 0:02:37]}  a5 {[%clk 0:02:37]} 12. Nf4 {[%clk 0:02:36]}  Ba6 {[%clk 0:02:33]} 13. Nh5 {[%clk 0:02:22]}  g6 {[%clk 0:02:20]} 14. Nf4 {[%clk 0:02:17]}  Bxd3 {[%clk 0:02:09]} 15. Qxd3 {[%clk 0:02:17]}  Nf8 {[%clk 0:02:06]} 16. Be3 {[%clk 0:02:08]}  Nbd7 {[%clk 0:02:02]} 17. c4 {[%clk 0:02:02]}  dxc4 {[%clk 0:01:54]} 18. Qxc4 {[%clk 0:02:01]}  Nb6 {[%clk 0:01:54]} 19. Qc2 {[%clk 0:01:59]}  g5 {[%clk 0:01:51]} 20. Nh5 {[%clk 0:01:58]}  Nd5 {[%clk 0:01:45]} 21. Rac1 {[%clk 0:01:53]}  Kd7 {[%clk 0:01:42]} 22. Nd2 {[%clk 0:01:47]}  Ng6 {[%clk 0:01:36]} 23. Ne4 {[%clk 0:01:35]}  Rhc8 {[%clk 0:01:21]} 24. g3 {[%clk 0:01:29]}  Qb6 {[%clk 0:01:17]} 25. Red1 {[%clk 0:00:55]}  Ke8 {[%clk 0:01:05]} 26. Nhf6+ {[%clk 0:00:48]}  Kf8 {[%clk 0:00:56]} 27. Nd7+ {[%clk 0:00:47]} 1-0


[Site "https://www.chess.com"]

[Event "Titled Tuesday Blitz April 12 Late 2022"]
[White "Papp, Levente"]
[Black "Dahlgren, James Allen"]
[WhiteFideId "751243"]
[BlackFideId "22256873"]
[WhiteElo "2308"]
[BlackElo "2099"]
[Result "1-0"]
[Round "01"]
[TimeControl "180+1"]
[Date "2022.04.13"]
[WhiteClock "0:01:23"]
[BlackClock "0:00:25"]

1. c4 {[%clk 0:02:58]}  e6 {[%clk 0:02:59]} 2. e4 {[%clk 0:02:57]}  d5 {[%clk 0:02:58]} 3. exd5 {[%clk 0:02:58]}  exd5 {[%clk 0:02:55]} 4. d4 {[%clk 0:02:59]}  Nf6 {[%clk 0:02:56]} 5. Nc3 {[%clk 0:02:59]}  Bb4 {[%clk 0:02:55]} 6. Nf3 {[%clk 0:02:56]}  O-O {[%clk 0:02:55]} 7. Be2 {[%clk 0:02:48]}  dxc4 {[%clk 0:02:39]} 8. O-O {[%clk 0:02:48]}  Bg4 {[%clk 0:02:34]} 9. Bg5 {[%clk 0:02:28]}  h6 {[%clk 0:02:17]} 10. Bh4 {[%clk 0:02:28]}  Bxc3 {[%clk 0:02:02]} 11. bxc3 {[%clk 0:02:25]}  b5 {[%clk 0:02:03]} 12. a4 {[%clk 0:02:16]}  c6 {[%clk 0:02:02]} 13. h3 {[%clk 0:02:13]}  Bh5 {[%clk 0:01:43]} 14. g4 {[%clk 0:02:12]}  Bg6 {[%clk 0:01:41]} 15. Ne5 {[%clk 0:02:12]}  Be4 {[%clk 0:01:35]} 16. Qd2 {[%clk 0:02:00]}  Nbd7 {[%clk 0:01:31]} 17. Nxd7 {[%clk 0:01:57]}  Qxd7 {[%clk 0:01:31]} 18. Bxf6 {[%clk 0:01:57]}  gxf6 {[%clk 0:01:30]} 19. Qxh6 {[%clk 0:01:58]}  f5 {[%clk 0:01:17]} 20. axb5 {[%clk 0:01:47]}  fxg4 {[%clk 0:01:10]} 21. hxg4 {[%clk 0:01:34]}  cxb5 {[%clk 0:01:03]} 22. Ra6 {[%clk 0:01:34]}  f6 {[%clk 0:00:57]} 23. f3 {[%clk 0:01:30]}  Bb7 {[%clk 0:00:42]} 24. Rxf6 {[%clk 0:01:24]}  Rxf6 {[%clk 0:00:40]} 25. Qxf6 {[%clk 0:01:25]}  Rf8 {[%clk 0:00:36]} 26. Qg5+ {[%clk 0:01:24]}  Qg7 {[%clk 0:00:25]} 27. Qxb5 {[%clk 0:01:23]} 1-0


[Site "https://www.chess.com"]

[Event "Titled Tuesday Blitz April 12 Late 2022"]
[White "Plotnikov, Pavel"]
[Black "Naroditsky, Daniel"]
[WhiteFideId "4170342"]
[BlackFideId "2026961"]
[WhiteElo "2298"]
[BlackElo "2608"]
[Result "0-1"]
[Round "01"]
[TimeControl "180+1"]
[Date "2022.04.12"]
[WhiteClock "0:00:01"]
[BlackClock "0:00:02"]

1. e4 {[%clk 0:02:59]}  c5 {[%clk 0:02:55]} 2. c3 {[%clk 0:02:59]}  d5 {[%clk 0:02:53]} 3. exd5 {[%clk 0:03:00]}  Nf6 {[%clk 0:02:54]} 4. d4 {[%clk 0:03:00]}  cxd4 {[%clk 0:02:53]} 5. cxd4 {[%clk 0:02:56]}  Nxd5 {[%clk 0:02:52]} 6. Nf3 {[%clk 0:02:56]}  Nc6 {[%clk 0:02:51]} 7. Bc4 {[%clk 0:02:54]}  e6 {[%clk 0:02:43]} 8. Nc3 {[%clk 0:02:54]}  Nxc3 {[%clk 0:02:37]} 9. bxc3 {[%clk 0:02:54]}  Be7 {[%clk 0:02:38]} 10. O-O {[%clk 0:02:54]}  O-O {[%clk 0:02:38]} 11. Qe2 {[%clk 0:02:52]}  b6 {[%clk 0:02:28]} 12. Rd1 {[%clk 0:02:50]}  Bb7 {[%clk 0:02:24]} 13. Bf4 {[%clk 0:02:47]}  Na5 {[%clk 0:02:19]} 14. Bd3 {[%clk 0:02:43]}  Rc8 {[%clk 0:02:02]} 15. Rac1 {[%clk 0:02:39]}  Qd5 {[%clk 0:02:02]} 16. c4 {[%clk 0:02:08]}  Qh5 {[%clk 0:02:02]} 17. d5 {[%clk 0:02:04]}  Ba3 {[%clk 0:01:59]} 18. Rc2 {[%clk 0:01:56]}  exd5 {[%clk 0:01:59]} 19. cxd5 {[%clk 0:01:47]}  Bxd5 {[%clk 0:01:57]} 20. Rxc8 {[%clk 0:01:45]}  Rxc8 {[%clk 0:01:58]} 21. Bxh7+ {[%clk 0:01:37]}  Qxh7 {[%clk 0:01:33]} 22. Rxd5 {[%clk 0:01:36]}  Qb1+ {[%clk 0:01:31]} 23. Rd1 {[%clk 0:01:27]}  Qf5 {[%clk 0:01:29]} 24. g3 {[%clk 0:01:14]}  Bf8 {[%clk 0:01:21]} 25. Qe5 {[%clk 0:01:07]}  Qxe5 {[%clk 0:01:02]} 26. Nxe5 {[%clk 0:01:08]}  f6 {[%clk 0:01:03]} 27. Ng6 {[%clk 0:01:01]}  Bc5 {[%clk 0:01:00]} 28. h4 {[%clk 0:00:57]}  Nc6 {[%clk 0:00:58]} 29. Rd7 {[%clk 0:00:54]}  a5 {[%clk 0:00:34]} 30. h5 {[%clk 0:00:53]}  Nd4 {[%clk 0:00:33]} 31. h6 {[%clk 0:00:39]}  gxh6 {[%clk 0:00:32]} 32. Bd6 {[%clk 0:00:30]}  Nf5 {[%clk 0:00:18]} 33. g4 {[%clk 0:00:20]}  Bxd6 {[%clk 0:00:11]} 34. gxf5 {[%clk 0:00:19]}  Bc5 {[%clk 0:00:06]} 35. Kg2 {[%clk 0:00:19]}  Re8 {[%clk 0:00:05]} 36. Kf3 {[%clk 0:00:19]}  a4 {[%clk 0:00:06]} 37. Kg4 {[%clk 0:00:19]}  Bxf2 {[%clk 0:00:05]} 38. Kh5 {[%clk 0:00:19]}  Be3 {[%clk 0:00:05]} 39. Ne7+ {[%clk 0:00:18]}  Kf8 {[%clk 0:00:03]} 40. Ng6+ {[%clk 0:00:15]}  Kg8 {[%clk 0:00:04]} 41. Ne7+ {[%clk 0:00:15]}  Kf8 {[%clk 0:00:02]} 42. Nd5 {[%clk 0:00:13]}  Bg5 {[%clk 0:00:02]} 43. Kg6 {[%clk 0:00:13]}  Rc8 {[%clk 0:00:02]} 44. Rf7+ {[%clk 0:00:12]}  Ke8 {[%clk 0:00:03]} 45. Re7+ {[%clk 0:00:08]}  Kd8 {[%clk 0:00:03]} 46. Kf7 {[%clk 0:00:08]}  Rc2 {[%clk 0:00:02]} 47. Nxb6 {[%clk 0:00:06]}  Rc7 {[%clk 0:00:03]} 48. Rxc7 {[%clk 0:00:04]}  Kxc7 {[%clk 0:00:04]} 49. Nxa4 {[%clk 0:00:03]}  h5 {[%clk 0:00:04]} 50. Nb2 {[%clk 0:00:01]}  h4 {[%clk 0:00:05]} 51. Nd3 {[%clk 0:00:01]}  Be3 {[%clk 0:00:04]} 52. Ne1 {[%clk 0:00:01]}  h3 {[%clk 0:00:03]} 53. Nf3 {[%clk 0:00:02]}  Bd4 {[%clk 0:00:02]} 54. Ke6 {[%clk 0:00:01]}  Be5 {[%clk 0:00:02]} 0-1


[Site "https://www.chess.com"]

[Event "Titled Tuesday Blitz April 12 Late 2022"]
[White "Pranav, V"]
[Black "Song, Michael"]
[WhiteFideId "25060783"]
[BlackFideId "2613190"]
[WhiteElo "2349"]
[BlackElo "2274"]
[Result "1-0"]
[Round "01"]
[TimeControl "180+1"]
[Date "2022.04.12"]
[WhiteClock "0:00:28"]
[BlackClock "0:00:03"]

1. e4 {[%clk 0:03:00]}  e5 {[%clk 0:02:55]} 2. Nf3 {[%clk 0:03:00]}  Nf6 {[%clk 0:02:54]} 3. Nc3 {[%clk 0:02:59]}  Nc6 {[%clk 0:02:53]} 4. g3 {[%clk 0:02:59]}  Bc5 {[%clk 0:02:50]} 5. Bg2 {[%clk 0:02:58]}  O-O {[%clk 0:02:50]} 6. d3 {[%clk 0:02:58]}  a6 {[%clk 0:02:48]} 7. O-O {[%clk 0:02:55]}  Re8 {[%clk 0:02:42]} 8. h3 {[%clk 0:02:53]}  h6 {[%clk 0:02:30]} 9. Nh4 {[%clk 0:02:50]}  Ne7 {[%clk 0:02:13]} 10. Kh2 {[%clk 0:02:47]}  d5 {[%clk 0:02:13]} 11. Qe2 {[%clk 0:02:44]}  g5 {[%clk 0:01:46]} 12. Nf3 {[%clk 0:02:42]}  d4 {[%clk 0:01:45]} 13. Nd1 {[%clk 0:02:39]}  Ng6 {[%clk 0:01:45]} 14. Nd2 {[%clk 0:02:36]}  Bf8 {[%clk 0:01:40]} 15. a4 {[%clk 0:02:35]}  Bg7 {[%clk 0:01:27]} 16. Nc4 {[%clk 0:02:34]}  Rb8 {[%clk 0:01:22]} 17. a5 {[%clk 0:02:33]}  Be6 {[%clk 0:01:21]} 18. b3 {[%clk 0:02:34]}  Nd7 {[%clk 0:00:51]} 19. Bf3 {[%clk 0:02:24]}  Nf6 {[%clk 0:00:43]} 20. Bg2 {[%clk 0:02:23]}  Nd7 {[%clk 0:00:43]} 21. Ba3 {[%clk 0:02:16]}  Bf8 {[%clk 0:00:41]} 22. Bxf8 {[%clk 0:02:15]}  Rxf8 {[%clk 0:00:37]} 23. Rb1 {[%clk 0:02:12]}  Qe7 {[%clk 0:00:33]} 24. c3 {[%clk 0:02:10]}  dxc3 {[%clk 0:00:31]} 25. Nxc3 {[%clk 0:02:10]}  Bxc4 {[%clk 0:00:19]} 26. bxc4 {[%clk 0:02:09]}  Nc5 {[%clk 0:00:19]} 27. Nd5 {[%clk 0:02:09]}  Qd6 {[%clk 0:00:19]} 28. Rbd1 {[%clk 0:02:04]}  c6 {[%clk 0:00:19]} 29. Ne3 {[%clk 0:02:05]}  Ne7 {[%clk 0:00:19]} 30. Qh5 {[%clk 0:02:03]}  Rbd8 {[%clk 0:00:18]} 31. Ng4 {[%clk 0:01:39]}  Kg7 {[%clk 0:00:18]} 32. f4 {[%clk 0:01:37]}  exf4 {[%clk 0:00:17]} 33. gxf4 {[%clk 0:01:36]}  gxf4 {[%clk 0:00:17]} 34. d4 {[%clk 0:01:28]}  Nd7 {[%clk 0:00:13]} 35. Bf3 {[%clk 0:01:18]}  Qg6 {[%clk 0:00:13]} 36. Qh4 {[%clk 0:01:18]}  Qg5 {[%clk 0:00:12]} 37. Qf2 {[%clk 0:01:17]}  Kh8 {[%clk 0:00:11]} 38. Rg1 {[%clk 0:01:17]}  Rg8 {[%clk 0:00:11]} 39. h4 {[%clk 0:01:08]}  Qg7 {[%clk 0:00:09]} 40. Qd2 {[%clk 0:01:05]}  Ng6 {[%clk 0:00:09]} 41. Qf2 {[%clk 0:01:03]}  Nf6 {[%clk 0:00:07]} 42. Ne5 {[%clk 0:01:01]}  Qf8 {[%clk 0:00:07]} 43. Nd3 {[%clk 0:00:54]}  Qe7 {[%clk 0:00:07]} 44. h5 {[%clk 0:00:51]}  Nh7 {[%clk 0:00:05]} 45. hxg6 {[%clk 0:00:50]}  fxg6 {[%clk 0:00:05]} 46. Nxf4 {[%clk 0:00:51]}  g5 {[%clk 0:00:04]} 47. Nh5 {[%clk 0:00:51]}  Rdf8 {[%clk 0:00:05]} 48. Qg3 {[%clk 0:00:50]}  g4 {[%clk 0:00:05]} 49. Bxg4 {[%clk 0:00:50]}  Ng5 {[%clk 0:00:05]} 50. Qe5+ {[%clk 0:00:49]}  Qxe5+ {[%clk 0:00:05]} 51. dxe5 {[%clk 0:00:50]}  Nxe4 {[%clk 0:00:05]} 52. Rg2 {[%clk 0:00:40]}  Rg5 {[%clk 0:00:05]} 53. Rd7 {[%clk 0:00:28]}  Rxe5 {[%clk 0:00:05]} 54. Rxb7 {[%clk 0:00:28]}  Rg8 {[%clk 0:00:03]} 55. Bf3 {[%clk 0:00:27]}  Rxg2+ {[%clk 0:00:02]} 56. Kxg2 {[%clk 0:00:28]}  Ng5 {[%clk 0:00:03]} 57. Nf6 {[%clk 0:00:28]} 1-0


[Site "https://www.chess.com"]